bitfinex-derivatives/quotes_ETHF0:USTF0_20260201
["timestamp","ask_amount","ask_price","bid_price","bid_amount"]
[1769957954929,6.83930258,2377.3,2375.6,6.8425123]
[1769957955131,0.21054,2377.1,2375.7,6.8425123]
[1769957955630,0.00318568,2377.3,2375.7,6.8425123]
[1769957958021,0.21055,2377.0,2375.7,6.8425123]
[1769957958227,0.00318568,2377.3,2375.7,6.8425123]
[1769957961230,0.00318568,2377.3,2375.7,9.30801239]
[1769957961533,0.00318568,2377.3,2375.9,6.8425123]
[1769957962133,0.00318568,2377.3,2376.0,6.8425123]
[1769957962328,0.00318568,2377.3,2376.1,6.8425123]
[1769957962728,0.00318568,2377.3,2376.2,6.8425123]
[1769957963232,0.21054,2377.1,2376.3,6.8425123]
[1769957963437,0.00318568,2377.3,2376.3,6.8425123]
[1769957966232,6.83930258,2377.3,2376.3,6.8425123]
[1769957966935,7.0466469,2377.2,2376.2,2.695]
[1769957967543,7.0466569,2377.1,2376.1,6.8425123]
[1769957967838,6.8361169,2376.9,2375.8,6.8425123]
[1769957968036,7.0466869,2376.8,2375.8,6.8425123]
[1769957968339,6.8361169,2376.6,2375.5,6.8425123]
[1769957969240,0.21058,2376.7,2375.5,6.8425123]
[1769957971143,7.0466969,2376.7,2375.5,6.8425123]
[1769957972138,0.21058,2376.6,2375.5,6.8425123]
[1769957972441,7.0466969,2376.6,2375.5,6.8425123]
[1769957974639,0.21059,2376.5,2375.5,6.8425123]
[1769957975343,6.8361169,2376.4,2375.2,6.8425123]
[1769957975542,0.21063,2376.1,2375.2,6.8425123]
[1769957979749,0.21063,2376.0,2375.2,6.8425123]
[1769957980150,7.19665101,2376.5,2375.2,6.8425123]
[1769957980452,0.21059,2376.6,2375.2,6.8425123]
[1769957980747,0.21059,2376.5,2375.2,6.8425123]
[1769957981348,0.2106,2376.4,2375.2,6.8425123]
[1769957982850,0.21055,2376.9,2375.2,9.35709804]
[1769957983047,0.21055,2376.9,2375.5,7.27731026]
[1769957983349,0.21055,2376.9,2375.7,7.27731026]
[1769957984652,0.21057,2376.7,2375.7,7.27731026]
[1769957985652,0.21058,2376.6,2375.7,7.27731026]
[1769957986854,0.21061,2376.3,2375.2,7.37890406]
[1769957989851,7.5035894,2376.2,2375.2,7.37890406]
[1769957990650,7.5035894,2376.2,2374.6,3.69690945]
[1769957990651,6.978,2376.1,2374.1,4.43169809]
[1769957990854,6.978,2376.1,2373.3,12.49338422]
[1769957990855,2.55514816,2374.4,2373.3,9.48861413]
[1769957991047,2.76592816,2374.4,2373.3,7.41115976]
[1769957991247,0.21078,2374.4,2373.5,7.37890406]
[1769957991451,2.50321687,2373.9,2373.5,7.37890406]
[1769957991646,30.13232933,2374.2,2373.7,7.37890406]
[1769957991849,5.00943159,2374.2,2373.8,7.37890406]
[1769957992043,5.00943159,2374.2,2373.8,5.98890406]
[1769957992248,0.00299785,2374.2,2373.5,0.00344627]
[1769957992450,0.00299785,2374.2,2373.5,6.80515682]
[1769957992744,5.00943159,2374.2,2373.5,0.00344627]
[1769957993056,5.00643374,2373.6,2372.0,2.696]
[1769957993257,7.2929694,2373.7,2371.9,2.696]
[1769957993258,12.29940314,2373.7,2371.9,2.696]
[1769957993554,12.29940314,2373.7,2372.0,8.4192]
[1769957993753,12.29940314,2373.7,2372.1,8.4192]
[1769957993958,12.29940314,2373.7,2372.1,8.42464728]
[1769957994153,7.2929694,2373.6,2372.3,7.37890406]
[1769957994552,7.5038194,2373.6,2372.4,14.18061461]
[1769957994755,7.5038194,2373.6,2372.4,7.37890406]
[1769957994954,7.5038194,2373.6,2372.6,7.37890406]
[1769957995455,7.5038194,2373.6,2372.7,6.80171055]
[1769957996152,7.5038394,2373.4,2372.3,7.37890406]
[1769957996658,7.5038394,2373.4,2372.4,6.80171055]
[1769957997753,7.5038394,2373.4,2372.5,7.37890406]
[1769957998162,7.5038394,2373.4,2372.6,6.80171055]
[1769957999060,0.21084,2373.7,2372.7,14.18061461]
[1769957999255,0.00299785,2374.2,2372.7,15.79810406]
[1769957999452,7.61035182,2374.2,2373.0,7.37890406]
[1769957999654,0.00299785,2374.2,2373.0,7.37890406]
[1769957999858,0.00299785,2374.2,2373.5,7.37890406]
[1769958000254,0.00299785,2374.2,2373.6,7.37890406]
[1769958000454,0.00299785,2374.2,2373.5,14.18061461]
[1769958000856,0.00299785,2374.2,2372.2,7.37890406]
[1769958001060,0.00299785,2374.2,2373.2,7.37890406]
[1769958001460,0.00299785,2374.2,2373.4,7.37890406]
[1769958001851,0.00299785,2374.2,2372.4,7.37890406]
[1769958002058,12.51320099,2374.2,2372.6,7.37890406]
[1769958002258,5.22023159,2374.2,2372.8,7.37890406]
[1769958002455,7.2929694,2374.1,2373.0,7.37890406]
[1769958002659,7.2929694,2374.0,2373.0,7.37890406]
[1769958002856,7.5037794,2374.0,2373.0,7.37890406]
[1769958003060,7.2929694,2373.5,2372.5,7.37890406]
[1769958003266,0.21086,2373.5,2372.5,7.37890406]
[1769958003561,0.21087,2373.3,2372.2,7.37890406]
[1769958003764,5.00643374,2373.5,2372.2,7.37890406]
[1769958003961,5.00643374,2373.5,2372.4,7.37890406]
[1769958004161,5.00643374,2373.5,2372.5,7.37890406]
[1769958004363,5.21728374,2373.6,2372.5,7.37890406]
[1769958004668,0.21085,2373.6,2372.5,7.37890406]
[1769958004855,5.21728374,2373.6,2372.7,7.37890406]
[1769958005060,0.21085,2373.6,2372.7,7.37890406]
[1769958005263,0.2109,2373.0,2372.2,7.37890406]
[1769958005562,5.00643374,2373.1,2372.2,7.37890406]
[1769958005865,0.21089,2373.1,2372.2,7.37890406]
[1769958006367,0.21092,2372.8,2372.1,0.00544728]
[1769958006664,5.21733374,2373.0,2372.1,7.38435134]
[1769958007063,0.21091,2372.9,2372.1,0.00544728]
[1769958007867,7.52965685,2373.5,2370.9,6.99018487]
[1769958007868,5.00643374,2372.6,2370.9,6.99018487]
[1769958008068,6.61908656,2372.6,2371.2,6.99018487]
[1769958008263,0.21096,2372.4,2371.2,6.99018487]
[1769958008463,0.21097,2372.2,2371.2,6.99018487]
[1769958008664,0.21098,2372.1,2371.2,6.99018487]
[1769958008868,0.21098,2372.1,2371.2,6.99440806]
[1769958009369,0.21098,2372.1,2371.4,6.99018487]
[1769958009869,0.21098,2372.1,2371.8,6.99018487]
[1769958010064,0.21098,2372.1,2371.8,8.4192]
[1769958010264,0.21093,2372.7,2372.0,8.4192]
[1769958010465,0.21093,2372.7,2372.0,6.99018487]
[1769958011169,0.21093,2372.7,2372.0,15.40938487]
[1769958011365,0.21499063,2372.7,2372.0,15.40938487]
[1769958011571,0.21095,2372.5,2371.7,6.99018487]
[1769958011773,0.21097,2372.2,2371.4,6.99018487]
[1769958011980,9.11350908,2372.3,2371.2,0.00422319]
[1769958012173,0.211,2371.9,2371.2,6.99440806]
[1769958012776,0.21101,2371.7,2370.9,6.99018487]
[1769958013582,0.21101,2371.7,2370.9,15.40938487]
[1769958013775,8.95704218,2372.2,2371.5,6.99018487]
[1769958013776,5.00643374,2372.2,2371.5,6.99018487]
[1769958013978,5.21740374,2372.3,2371.5,6.99018487]
[1769958014278,0.21097,2372.2,2371.5,6.99018487]
[1769958014478,0.21098,2372.1,2371.5,6.99018487]
[1769958014976,0.21098,2372.1,2371.5,15.40938487]
[1769958015282,0.21098,2372.1,2371.8,6.99018487]
[1769958015681,0.21098,2372.1,2371.8,8.4192]
[1769958016179,5.00643374,2372.5,2372.0,8.4192]
[1769958016384,5.00643374,2372.5,2371.8,6.99018487]
[1769958016681,5.00643374,2372.5,2370.9,2.7044858]
[1769958016682,5.21736374,2372.6,2372.2,6.99018487]
[1769958016878,0.21093,2372.6,2372.2,6.99018487]
[1769958017073,0.21094,2372.5,2371.9,6.99018487]
[1769958017277,0.21096,2372.3,2371.6,6.99018487]
[1769958017779,0.21097,2372.2,2371.6,6.48055174]
[1769958017973,5.00643374,2372.0,2371.0,7.4177908]
[1769958018173,5.00643374,2372.0,2371.3,7.4177908]
[1769958018375,5.00643374,2371.9,2371.4,7.4177908]
[1769958018581,5.00643374,2372.1,2371.7,7.4177908]
[1769958018782,5.00643374,2372.1,2371.3,7.4177908]
[1769958018985,5.00643374,2372.0,2371.3,7.4177908]
[1769958019182,5.00643374,2371.9,2371.5,7.41729417]
[1769958019681,5.00643374,2371.9,2371.8,6.48055174]
[1769958019880,5.00643374,2371.9,2371.6,6.48055174]
[1769958020078,5.00643374,2371.8,2371.6,6.48055174]
[1769958020280,5.00643374,2371.8,2371.6,6.88086953]
[1769958020281,6.25804218,2371.8,2371.6,6.88086953]
[1769958020584,4.98694789,2371.7,2370.9,0.0044858]
[1769958020881,4.98694789,2371.8,2370.9,0.0044858]
[1769958021474,6.46903218,2372.0,2370.9,0.0044858]
[1769958021475,4.98694789,2371.7,2370.9,0.0044858]
[1769958021684,37.41542104,2371.6,2370.9,0.0044858]
[1769958021882,7.73598664,2371.6,2370.9,0.0044858]
[1769958022080,7.73598664,2371.7,2370.9,0.0044858]
[1769958022279,4.98694789,2371.7,2370.9,0.0044858]
[1769958022479,4.98694789,2371.6,2370.9,0.0044858]
[1769958022684,0.21101,2371.8,2370.9,0.0044858]
[1769958023282,0.21096,2372.3,2370.9,0.0044858]
[1769958023587,0.21097,2372.2,2370.9,0.0044858]
[1769958023782,4.98694789,2371.2,2368.7,3.26964291]
[1769958023989,0.21125,2369.1,2368.2,16.92035345]
[1769958024281,2.55514816,2369.6,2368.3,12.0]
[1769958024475,0.21121,2369.5,2367.5,2.7]
[1769958024676,4.98439151,2368.4,2367.5,2.70504839]
[1769958024879,7.52965685,2369.3,2368.3,6.30972443]
[1769958025080,7.52965685,2369.2,2368.1,6.30972443]
[1769958025275,7.53339203,2369.5,2367.6,12.0]
[1769958025475,7.52965685,2369.4,2367.8,6.30972443]
[1769958025678,7.52965685,2369.2,2367.6,12.0]
[1769958025878,7.74090685,2369.1,2367.7,7.21186208]
[1769958026180,7.52965685,2369.0,2367.7,7.21186208]
[1769958026386,16.65470648,2369.3,2367.9,7.21186208]
[1769958026586,0.41559263,2369.5,2367.5,0.00504839]
[1769958026587,0.00373518,2369.5,2368.2,7.21186208]
[1769958027085,0.00373518,2369.5,2368.4,7.21186208]
[1769958027280,0.00373518,2369.5,2368.5,7.03171512]
[1769958027780,0.00373518,2369.5,2368.5,19.03171512]
[1769958027987,0.00373518,2369.5,2367.6,7.03171512]
[1769958028184,0.77588655,2369.5,2367.7,7.03171512]
[1769958028684,0.00373518,2369.5,2368.0,7.03171512]
[1769958029083,0.77382217,2369.5,2368.2,7.03171512]
[1769958029479,0.21123,2369.3,2368.2,7.03171512]
[1769958029679,0.21123,2369.3,2368.2,19.03171512]
[1769958029876,0.21123,2369.3,2368.3,7.03274731]
[1769958030082,0.00373518,2369.5,2368.3,13.34247174]
[1769958030282,0.00373518,2369.5,2368.5,7.03274731]
[1769958030678,0.00373518,2369.5,2368.6,12.0]
[1769958030881,0.21124,2369.2,2368.2,7.03274731]
[1769958031180,0.21124,2369.2,2368.3,19.00908562]
[1769958031481,0.21126,2369.0,2368.3,7.00908562]
[1769958031682,0.21126,2369.0,2368.4,19.00908562]
[1769958031884,0.21126,2369.0,2368.4,7.00908562]
[1769958032178,0.21127,2368.9,2367.6,7.00908562]
[1769958032380,0.21127,2368.9,2367.9,7.00908562]
[1769958032588,7.53339203,2369.5,2367.5,0.00504839]
[1769958032589,0.00373518,2369.5,2368.0,7.00908562]
[1769958032985,0.21122,2369.4,2368.2,7.00908562]
[1769958033386,0.21122,2369.4,2368.4,6.99018487]
[1769958033779,0.21122,2369.4,2368.5,18.99018487]
[1769958033984,0.92104427,2369.5,2367.8,6.99018487]
[1769958034385,3.4286295,2369.2,2368.0,6.99018487]
[1769958034581,0.00373518,2369.5,2368.0,13.2999093]
[1769958034780,0.00373518,2369.5,2368.1,25.2999093]
[1769958034989,6.16158434,2369.5,2368.2,6.99018487]
[1769958035392,0.21123,2369.3,2368.2,6.99018487]
[1769958035783,0.21123,2369.3,2368.4,6.99018487]
[1769958036091,0.21123,2369.3,2367.5,0.00504839]
[1769958036092,0.21126,2369.0,2368.1,6.99018487]
[1769958036286,6.15784916,2368.9,2368.2,6.99018487]
[1769958036690,6.15784916,2369.0,2368.6,6.99018487]
[1769958036891,4.45571377,2368.9,2367.6,12.0]
[1769958037087,6.15784916,2369.0,2368.2,6.30972443]
[1769958037287,7.52965685,2369.3,2368.4,6.30972443]
[1769958037491,7.04771642,2370.1,2368.5,6.81]
[1769958037692,7.04771642,2370.1,2368.6,6.81]
[1769958037892,7.04771642,2370.1,2368.7,2.08732443]
[1769958038085,7.04771642,2370.1,2368.7,7.09361519]
[1769958038086,0.21119,2369.8,2368.7,7.09361519]
[1769958038287,7.25890642,2369.8,2368.7,7.09361519]
[1769958038495,0.2112,2369.6,2368.7,5.70361519]
[1769958038889,7.25891642,2369.6,2368.7,5.70361519]
[1769958039496,7.25891642,2369.6,2369.2,4.92035345]
[1769958039690,7.25891642,2369.6,2369.2,0.00483734]
[1769958040189,7.25892642,2369.5,2368.2,7.19448038]
[1769958040398,7.04771642,2369.3,2368.2,12.89809557]
[1769958040592,0.21125,2369.1,2368.2,12.89809557]
[1769958040787,0.21125,2369.1,2368.4,2.08732443]
[1769958040991,0.21125,2369.1,2368.3,2.08732443]
[1769958041186,7.25898642,2368.9,2368.4,5.70361519]
[1769958041596,7.25898642,2368.9,2368.4,7.79093962]
[1769958041894,7.25898642,2368.9,2368.3,0.00423037]
[1769958042090,0.00512837,2369.8,2368.3,0.00423037]
[1769958042091,7.25893642,2369.5,2368.3,12.90232594]
[1769958042290,7.25893642,2369.4,2368.3,12.90232594]
[1769958042489,7.04771642,2369.3,2368.3,5.70784556]
[1769958042686,7.04771642,2369.6,2368.4,7.19448038]
[1769958043088,7.04771642,2369.6,2368.5,5.70361519]
[1769958043993,7.25893642,2369.4,2368.5,5.70361519]
[1769958044291,7.25893642,2369.4,2368.6,5.70361519]
[1769958044499,0.21122,2369.4,2368.5,2.08732443]
[1769958044696,0.21122,2369.4,2368.6,2.08732443]
[1769958045095,0.21122,2369.4,2368.7,7.79093962]
[1769958045295,4.94692088,2369.5,2368.6,8.85049272]
[1769958045496,0.00512837,2369.8,2369.0,2.08732443]
[1769958045696,0.00512837,2369.8,2368.9,8.85049272]
[1769958046097,0.00512837,2369.8,2369.1,2.08732443]
[1769958046395,4.94692088,2370.1,2369.5,2.08732443]
[1769958046597,4.94692088,2370.1,2369.3,8.85049272]
[1769958047099,4.94692088,2370.2,2369.5,2.08732443]
[1769958047298,4.94692088,2370.1,2369.4,5.70361519]
[1769958047499,6.19820138,2370.1,2369.4,5.70361519]
[1769958047797,0.00464039,2370.2,2369.6,2.08732443]
[1769958047998,13.33320343,2370.2,2369.5,2.08732443]
[1769958048391,15.89773856,2369.9,2368.9,5.96883017]
[1769958048599,6.19820138,2369.8,2368.7,5.96883017]
[1769958048790,7.13036166,2369.8,2368.7,10.63595375]
[1769958048996,2.56917552,2369.5,2368.7,4.66712358]
[1769958049297,17.13710362,2369.4,2368.7,4.66712358]
[1769958049493,7.13036166,2369.2,2368.8,2.08732443]
[1769958049693,1.72634443,2369.1,2368.7,4.66712358]
[1769958050197,7.13036166,2369.2,2368.7,4.66712358]
[1769958050401,13.53980304,2369.2,2368.7,3.60262416]
[1769958050795,7.13036166,2369.1,2368.7,3.60262416]
[1769958050995,7.13036166,2369.1,2368.3,0.00423037]
[1769958051198,6.19820138,2369.0,2368.4,3.60262416]
[1769958051396,7.13036166,2368.8,2368.4,3.60262416]
[1769958051596,13.32856304,2368.6,2367.6,8.63594563]
[1769958051796,2.48715474,2368.1,2367.7,5.93294563]
[1769958051995,2.48715474,2368.2,2367.7,9.53556979]
[1769958052196,2.48715474,2368.0,2367.7,9.53556979]
[1769958052692,13.62933478,2368.7,2367.7,5.93593758]
[1769958052899,6.19820138,2369.4,2367.7,5.93593758]
[1769958053199,6.18295261,2369.2,2367.8,0.01524877]
[1769958053399,6.39419261,2369.2,2367.8,0.01524877]
[1769958053600,13.83148557,2369.2,2367.8,0.01524877]
[1769958053800,0.21125,2369.1,2367.8,0.01524877]
[1769958054002,0.21125,2369.1,2367.9,6.166]
[1769958054604,0.21125,2369.1,2369.0,3.53035345]
[1769958054795,0.21125,2369.1,2369.0,2.11850396]
[1769958055200,7.4311334,2369.6,2369.0,2.11850396]
[1769958055503,9.07625056,2370.1,2369.0,4.82250396]
[1769958055694,7.64365013,2370.2,2369.0,4.82250396]
[1769958055897,7.64365013,2370.2,2369.0,2.704]
[1769958056096,7.75702685,2370.3,2369.0,2.704]
[1769958056097,7.43250013,2370.1,2369.0,2.704]
[1769958056295,0.00438542,2370.1,2369.0,5.182]
[1769958060004,2.56917552,2370.7,2369.0,5.182]
[1769958060211,2.56917552,2370.7,2369.0,5.39325]
[1769958060515,10.00167565,2370.7,2369.0,5.39325]
[1769958060705,7.43250013,2370.7,2369.0,5.39325]
[1769958060907,0.21113,2370.4,2369.1,5.804]
[1769958061110,7.64708993,2370.4,2369.1,5.804]
[1769958061306,7.64708993,2370.4,2369.2,4.694]
[1769958061609,7.64708993,2370.4,2369.2,7.397]
[1769958061610,0.0034598,2370.4,2369.2,7.397]
[1769958061806,0.0034598,2370.4,2368.8,2.52061772]
[1769958062109,0.0034598,2370.4,2368.7,2.56917552]
[1769958062110,7.43595993,2370.4,2368.7,5.22361772]
[1769958062313,0.0034598,2370.4,2368.7,6.461]
[1769958063011,0.0034598,2370.4,2368.7,10.684]
[1769958063310,0.0034598,2370.4,2369.1,0.21124]
[1769958063711,0.0034598,2370.4,2368.3,6.35422104]
[1769958063712,7.64365013,2370.3,2369.2,2.703]
[1769958064108,0.00479283,2369.8,2368.9,2.703]
[1769958064310,7.64368013,2369.9,2368.9,2.703]
[1769958064615,7.64847296,2369.9,2368.9,2.703]
[1769958064809,0.00479283,2369.8,2368.9,2.703]
[1769958066117,7.4311334,2370.3,2368.9,2.91426]
[1769958066118,6.2447428,2370.2,2368.9,2.91426]
[1769958066415,7.43250013,2370.3,2368.9,2.91426]
[1769958066619,0.0034598,2370.4,2368.9,6.926]
[1769958066818,0.0034598,2370.4,2369.5,0.21121]
[1769958067118,13.67724293,2371.0,2369.5,0.21121]
[1769958067119,13.67724293,2371.0,2369.6,0.03725049]
[1769958067315,7.43250013,2371.0,2369.6,0.03725049]
[1769958067512,12.43056331,2371.0,2369.6,0.03725049]
[1769958068114,12.43474819,2371.0,2369.6,0.03725049]
[1769958069121,0.00418488,2371.0,2369.6,0.2112]
[1769958069518,12.42523212,2371.2,2369.6,0.2112]
[1769958069713,10.31091304,2371.2,2369.6,0.2112]
[1769958070513,10.31428287,2371.2,2369.6,0.2112]
[1769958070920,7.42716894,2371.1,2369.6,0.2112]
[1769958071215,7.42716894,2371.1,2369.7,5.408]
[1769958071216,7.42716894,2370.7,2369.7,5.408]
[1769958071716,7.43053877,2371.2,2369.7,5.408]
[1769958071918,7.43053877,2371.2,2369.5,0.21556277]
[1769958072118,7.43053877,2371.2,2369.6,5.179]
[1769958072415,7.42716894,2371.0,2369.6,4.935]
[1769958072617,7.42716894,2371.0,2369.7,2.702]
[1769958072815,7.42716894,2371.0,2369.5,0.21556277]
[1769958073015,7.42716894,2371.0,2369.6,7.854]
[1769958073213,7.63824894,2371.0,2369.5,0.15694771]
[1769958073518,7.56200146,2370.4,2369.5,2.70635277]
[1769958073916,7.35087146,2370.2,2369.5,1e-08]
[1769958076114,7.38293648,2370.7,2369.5,0.08846492]
[1769958076418,7.38293648,2371.0,2369.7,0.08846491]
[1769958076719,7.38293648,2371.0,2369.8,0.08846491]
[1769958077114,7.38293648,2371.0,2369.9,2.477]
[1769958077418,7.38293648,2371.0,2369.7,0.21119]
[1769958077419,7.38293648,2371.0,2369.7,2.702]
[1769958079212,7.38293648,2371.0,2369.8,0.27102725]
[1769958079417,7.29165531,2370.8,2369.6,2.702]
[1769958079818,7.29165531,2370.8,2369.5,0.27102726]
[1769958080016,7.29165531,2370.8,2369.6,2.702]
[1769958082723,7.28864708,2370.7,2369.6,2.702]
[1769958082923,7.28864708,2370.4,2369.5,1e-08]
[1769958083421,7.2749905,2370.1,2369.5,1e-08]
[1769958083917,7.2749905,2369.6,2368.8,2.702]
[1769958084123,7.2749905,2369.5,2368.8,2.702]
[1769958084720,0.00429075,2369.5,2368.8,2.70512423]
[1769958085424,44.77459363,2370.1,2368.9,0.36489776]
[1769958086116,7.2574313,2370.3,2368.9,0.36489776]
[1769958086321,7.2574313,2370.2,2369.0,0.36489776]
[1769958086721,44.77459363,2370.2,2369.0,0.36489776]
[1769958087019,7.2574313,2370.1,2369.0,0.36489776]
[1769958087220,7.27277594,2369.8,2369.0,2.702]
[1769958087720,44.78993827,2369.8,2369.0,2.702]
[1769958087921,7.27277594,2369.8,2369.0,2.702]
[1769958089519,7.3500892,2369.8,2369.0,2.702]
[1769958090019,44.86725153,2369.6,2368.8,0.00312423]
[1769958090224,7.3500892,2368.8,2367.9,2.702]
[1769958090425,7.3500892,2368.7,2367.9,2.702]
[1769958090626,7.3500892,2368.6,2367.8,2.702]
[1769958090826,7.3500892,2368.4,2367.8,2.702]
[1769958091122,12.36414673,2368.4,2367.8,0.00540581]
[1769958091426,7.35129642,2368.2,2367.8,0.00540581]
[1769958091926,37.53195022,2368.4,2367.8,0.00540581]
[1769958092225,0.00433158,2368.4,2367.8,0.00540581]
[1769958092726,37.52761864,2368.3,2367.8,0.00540581]
[1769958093426,37.53195022,2368.4,2367.8,0.00540581]
[1769958094124,7.2574313,2368.3,2367.8,0.00540581]
[1769958094722,7.2574313,2368.2,2367.0,2.703]
[1769958095029,7.2574313,2368.2,2367.1,7.2448898]
[1769958095829,7.2574313,2368.2,2367.1,7.24817161]
[1769958096723,0.00433158,2368.4,2367.1,7.24817161]
[1769958097421,0.00433158,2368.4,2367.1,7.45959161]
[1769958099137,0.00433158,2368.4,2367.3,7.17625247]
[1769958100436,6.97880009,2368.4,2367.3,7.17625247]
[1769958100640,6.97880009,2368.4,2367.4,10.423]
[1769958101433,6.2447428,2369.1,2367.4,10.423]
[1769958101434,6.97446851,2369.0,2367.5,7.19741572]
[1769958101638,7.18572851,2369.0,2367.6,10.421]
[1769958102140,7.18572851,2369.0,2367.6,17.61408414]
[1769958102336,7.1898682,2369.0,2367.6,17.61408414]
[1769958104843,7.1898682,2369.0,2367.7,6.87732864]
[1769958105342,7.25015484,2368.9,2367.8,10.42]
[1769958106739,7.25015484,2368.9,2367.7,6.87732864]
[1769958106943,7.25015484,2368.8,2367.8,5.546]
[1769958108244,7.25015484,2368.7,2367.8,5.546]
[1769958109640,7.25015484,2368.7,2367.7,6.87732864]
[1769958109944,7.25015484,2368.7,2367.8,2.704]
[1769958110142,7.25015484,2368.6,2367.8,2.704]
[1769958110541,7.25015484,2368.6,2367.2,6.82001724]
[1769958110747,7.25015484,2368.4,2367.3,2.704]
[1769958111342,7.25015484,2368.4,2367.2,6.82001724]
[1769958111343,7.25015484,2368.3,2367.2,6.82001724]
[1769958111647,7.25015484,2368.3,2367.4,6.83251619]
[1769958112142,44.98906348,2368.6,2367.4,6.83251619]
[1769958112338,7.25015484,2368.4,2367.4,7.701]
[1769958112541,7.25015484,2368.3,2367.5,2.704]
[1769958112742,9.75812154,2368.2,2367.5,2.704]
[1769958116448,2.5079667,2368.1,2367.5,2.704]
[1769958117350,2.5079667,2368.0,2367.5,9.5707984]
[1769958117554,2.5079667,2368.1,2367.5,9.5707984]
[1769958118148,2.5079667,2368.0,2367.6,6.8667984]
[1769958118354,12.25988079,2368.5,2367.6,6.8667984]
[1769958118553,7.25015484,2368.5,2367.6,6.8667984]
[1769958118952,12.4478052,2368.8,2367.6,6.8667984]
[1769958119155,7.43807925,2368.8,2367.6,6.8667984]
[1769958119451,7.42835414,2368.3,2367.6,2.704]
[1769958119847,7.42835414,2368.3,2367.5,2.704]
[1769958120046,5.00972595,2368.1,2367.1,0.00328181]
[1769958120253,7.42835414,2367.9,2367.1,0.00328181]
[1769958120854,7.42835414,2367.9,2367.2,2.704]
[1769958121050,7.42835414,2367.9,2367.1,0.00328181]
[1769958121251,12.43808009,2367.9,2367.1,0.00328181]
[1769958121555,7.43807926,2367.7,2366.9,2.704]
[1769958122357,7.43807926,2367.7,2366.9,2.70721588]
[1769958122759,7.43807926,2368.0,2366.9,2.91865588]
[1769958123061,7.43807926,2368.0,2367.0,7.694]
[1769958123356,5.00972595,2368.2,2367.2,0.18340056]
[1769958123662,7.34637897,2368.3,2367.2,0.39481056]
[1769958124361,6.2447428,2368.8,2367.6,0.18340056]
[1769958124362,7.34637897,2368.6,2367.6,0.18340056]
[1769958125061,6.24888249,2369.0,2367.7,0.18340056]
[1769958125062,12.35610492,2368.9,2367.7,0.18340056]
[1769958125461,7.34637897,2368.9,2367.7,0.18340056]
[1769958126256,7.34637897,2368.9,2367.9,0.43271306]
[1769958126460,7.34637897,2368.9,2368.0,8.29]
[1769958126861,7.34637897,2368.9,2368.0,8.51136306]
[1769958127058,0.00413969,2369.0,2368.0,8.51136306]
[1769958127261,5.00972595,2369.6,2368.3,0.26062949]
[1769958127466,7.30772656,2369.3,2368.4,5.182]
[1769958127963,7.30772656,2369.1,2368.4,2.704]
[1769958128462,0.00483001,2369.1,2368.4,2.704]
[1769958128663,7.30772656,2369.4,2368.4,2.704]
[1769958129063,7.31330821,2369.3,2368.5,2.704]
[1769958129359,7.31330821,2369.2,2368.5,2.704]
[1769958129662,7.3173852,2369.2,2368.1,0.21133]
[1769958129863,7.3173852,2369.2,2368.2,2.704]
[1769958130161,7.3173852,2369.2,2367.5,0.21138]
[1769958130162,7.07792289,2368.6,2367.8,2.704]
[1769958130560,7.07792289,2368.4,2367.3,2.704]
[1769958130761,7.07792289,2368.3,2367.3,2.704]
[1769958131064,7.07792289,2368.2,2367.3,2.704]
[1769958131265,7.07792289,2367.9,2366.9,2.70721588]
[1769958131662,12.08764884,2367.9,2366.9,2.70721588]
[1769958131862,7.07792289,2367.8,2366.9,2.70721588]
[1769958132064,7.07792289,2367.6,2366.3,9.037]
[1769958132267,7.07792289,2367.6,2366.4,2.704]
[1769958133064,7.07792289,2367.6,2366.4,2.70929784]
[1769958133662,7.07792289,2367.5,2366.4,2.70929784]
[1769958133862,7.08115941,2367.5,2366.4,5.90153362]
[1769958134768,7.08115941,2367.5,2366.5,3.19223578]
[1769958135963,7.08115941,2367.5,2366.6,10.36]
[1769958137064,7.08115941,2367.5,2366.5,2.705]
[1769958138371,7.08115941,2367.5,2366.5,6.04457891]
[1769958139467,0.00323652,2367.5,2366.6,3.31199731]
[1769958139674,7.07792289,2368.1,2366.6,3.31199731]
[1769958139867,7.07792289,2368.1,2366.7,8.875]
[1769958140068,7.07792289,2368.1,2366.7,12.18376079]
[1769958140774,7.08271246,2368.1,2366.7,12.18376079]
[1769958142467,7.08271246,2368.1,2366.8,3.45234185]
[1769958142873,7.08271246,2368.1,2366.8,12.46634185]
[1769958143070,7.08271246,2368.1,2366.9,3.40215578]
[1769958143963,0.00478957,2368.1,2366.9,3.40215578]
[1769958144170,7.08271246,2368.1,2367.0,10.345]
[1769958146570,7.08271246,2368.1,2367.1,3.43529885]
[1769958146776,7.07792289,2368.4,2367.5,3.43529885]
[1769958147976,7.08193751,2368.4,2367.5,3.43529885]
[1769958148277,7.08193751,2368.4,2367.5,3.64668885]
[1769958149070,7.08193751,2368.4,2367.5,0.21139]
[1769958149275,7.08193751,2368.4,2367.6,6.528]
[1769958150673,7.08193751,2368.4,2367.6,2.705]
[1769958150874,7.07792289,2368.2,2367.1,2.705]
[1769958151074,7.07792289,2368.1,2367.1,2.705]
[1769958152272,44.66856873,2368.1,2366.3,8.74870724]
[1769958152472,7.07792289,2367.8,2366.5,2.705]
[1769958152676,7.07792289,2367.8,2366.6,4.213]
[1769958152877,7.07792289,2367.7,2366.6,4.213]
[1769958153065,7.07792289,2367.7,2366.3,6.23055796]
[1769958153066,7.07792289,2367.6,2366.7,9.667]
[1769958154372,7.07792289,2367.4,2366.5,2.705]
[1769958154672,7.07792289,2367.4,2366.4,0.00529784]
[1769958155175,7.07792289,2367.4,2366.4,6.19629784]
[1769958155374,7.07792289,2367.2,2365.7,6.25751351]
[1769958155670,7.07792289,2367.0,2365.8,2.705]
[1769958155871,7.07792289,2366.9,2365.3,6.26281135]
[1769958156066,7.07792289,2366.8,2365.4,6.499]
[1769958156266,7.07792289,2366.5,2365.5,2.705]
[1769958156474,7.07792289,2366.4,2365.1,2.705]
[1769958156672,7.07792289,2366.4,2365.2,2.705]
[1769958156877,44.66856873,2366.4,2365.2,2.705]
[1769958157080,7.07792289,2366.3,2365.2,2.705]
[1769958157379,7.07792289,2366.3,2364.4,6.74114928]
[1769958157380,7.07792289,2366.0,2364.9,10.319]
[1769958157573,7.07792289,2366.0,2364.9,10.32448675]
[1769958157972,6.96809883,2365.9,2364.9,0.00548675]
[1769958158172,6.96809883,2365.6,2364.1,7.29361248]
[1769958158374,6.96809883,2365.6,2364.2,7.913]
[1769958158576,6.96809883,2365.5,2364.2,7.913]
[1769958159080,6.96809883,2365.2,2364.2,2.705]